fUSD/lending_fUSD_20260529
["ID","MTS","AMOUNT","RATE_DAILY","PERIOD"]
[423344421,1780065066000,-627.21927295,0.00019241,2]
[423344418,1780065066000,-151.0,0.00019178,2]
[423344419,1780065066000,-258.310538,0.00019178,2]
[423344413,1780065066000,-151.0,0.00019178,2]
[423344420,1780065066000,-627.21927295,0.00019196,2]
[423344485,1780065067000,-627.21927295,0.00019649,2]
[423344497,1780065067000,-352.0,0.0002,2]
[423344492,1780065067000,-2157.14243826,0.00019826,2]
[423344491,1780065067000,-627.21927295,0.00019762,2]
[423344490,1780065067000,-627.21927295,0.00019743,2]
[423344493,1780065067000,-627.21927295,0.00019867,2]
[423344496,1780065067000,-300.0,0.00019999,2]
[423344495,1780065067000,-627.21927295,0.00019977,2]
[423344499,1780065067000,-219.0,0.0002,2]
[423344488,1780065067000,-627.21927295,0.00019669,2]
[423344489,1780065067000,-627.21927295,0.00019676,2]
[423344498,1780065067000,-334.0,0.0002,2]
[423344505,1780065067000,-2696.0,0.0002,2]
[423344506,1780065067000,-818.0,0.0002,2]
[423344504,1780065067000,-571.0,0.0002,2]
[423344508,1780065067000,-151.0,0.0002,4]
[423344501,1780065067000,-1658.0,0.0002,2]
[423344503,1780065067000,-584.0,0.0002,2]
[423344507,1780065067000,-1492.90350179,0.0002,5]
[423344500,1780065067000,-879.0,0.0002,2]
[423344502,1780065067000,-1660.38500618,0.0002,2]
[423344510,1780065067000,-5486.0,0.0002,2]
[423344513,1780065067000,-2886.66323601,0.0002,2]
[423344511,1780065067000,-10537.51094005,0.0002,2]
[423344487,1780065067000,-627.21927295,0.00019668,2]
[423344509,1780065067000,-912.0,0.0002,2]
[423344486,1780065067000,-627.21927295,0.00019661,2]
[423344461,1780065067000,-500.0,0.00019278,2]
[423344484,1780065067000,-627.21927295,0.00019639,2]
[423344521,1780065067000,-627.21927295,0.00020032,2]
[423344460,1780065067000,-247.43723804,0.00019278,2]
[423344457,1780065067000,-500.0,0.00019278,2]
[423344459,1780065067000,-500.0,0.00019278,2]
[423344458,1780065067000,-238.60871557,0.00019278,2]
[423344462,1780065067000,-256.59241585,0.00019278,2]
[423344464,1780065067000,-500.0,0.00019278,2]
[423344466,1780065067000,-500.0,0.00019278,2]
[423344465,1780065067000,-275.93152964,0.00019278,2]
[423344463,1780065067000,-266.08633524,0.00019278,2]
[423344468,1780065067000,-500.0,0.00019278,2]
[423344469,1780065067000,-397.63283949,0.00019278,2]
[423344483,1780065067000,-1124.0,0.00019589,2]
[423344473,1780065067000,-500.0,0.00019278,2]
[423344467,1780065067000,-286.14099624,0.00019278,2]
[423344472,1780065067000,-500.0,0.00019278,2]
[423344471,1780065067000,-500.0,0.00019278,2]
[423344475,1780065067000,-1043.45278188,0.000193,2]
[423344481,1780065067000,-200.0,0.00019468,2]
[423344479,1780065067000,-627.21927295,0.0001944,2]
[423344477,1780065067000,-627.21927295,0.00019362,2]
[423344474,1780065067000,-627.21927295,0.00019284,2]
[423344478,1780065067000,-2000.0,0.00019437,7]
[423344476,1780065067000,-627.21927295,0.00019342,2]
[423344482,1780065067000,-627.21927295,0.0001948,2]
[423344480,1780065067000,-1000.0,0.00019468,2]
[423344470,1780065067000,-500.0,0.00019278,2]
[423344514,1780065067000,-878.0,0.0002,2]
[423344494,1780065067000,-627.21927295,0.00019964,2]
[423344515,1780065067000,-500.0,0.0002,2]
[423344547,1780065067000,-4101.394339,0.00020381,2]
[423344548,1780065067000,-4101.394339,0.00020381,2]
[423344549,1780065067000,-151.0,0.00020381,2]
[423344550,1780065067000,-151.0,0.00020381,2]
[423344557,1780065067000,-151.0,0.00020381,2]
[423344555,1780065067000,-1080.085022,0.00020381,2]
[423344552,1780065067000,-263.088574,0.00020381,2]
[423344551,1780065067000,-151.0,0.00020381,2]
[423344554,1780065067000,-1080.085022,0.00020381,2]
[423344545,1780065067000,-4101.394339,0.00020381,2]
[423344569,1780065067000,-300.0,0.00020999,2]
[423344559,1780065067000,-979.73,0.000204,2]
[423344556,1780065067000,-1080.085022,0.00020381,2]
[423344570,1780065067000,-352.0,0.00021,2]
[423344566,1780065067000,-5090.0,0.000209,7]
[423344562,1780065067000,-1124.0,0.0002062,2]
[423344558,1780065067000,-1660.38500618,0.000204,2]
[423344564,1780065067000,-469.99,0.00020785,2]
[423344568,1780065067000,-85338.4770317,0.00020974,2]
[423344563,1780065067000,-2000.0,0.00020628,2]
[423344567,1780065067000,-2319.72410669,0.00020922,2]
[423344560,1780065067000,-170.99392172,0.00020524,2]
[423344565,1780065067000,-1660.38500618,0.000208,2]
[423344571,1780065067000,-334.0,0.00021,2]
[423344572,1780065067000,-219.0,0.00021,2]
[423344512,1780065067000,-6000.0,0.0002,2]
[423344561,1780065067000,-1660.38500618,0.000206,2]
[423344546,1780065067000,-4101.394339,0.00020381,2]
[423344553,1780065067000,-1080.085022,0.00020381,2]
[423344539,1780065067000,-899.662535,0.00020381,2]
[423344519,1780065067000,-151.0,0.0002,2]
[423344517,1780065067000,-400.0,0.0002,2]
[423344516,1780065067000,-614.64028937,0.0002,2]
[423344520,1780065067000,-274.712958,0.0002,2]
[423344518,1780065067000,-7357.34,0.0002,2]
[423344537,1780065067000,-923.097563,0.00020381,2]
[423344525,1780065067000,-627.21927295,0.00020083,2]
[423344523,1780065067000,-627.21927295,0.00020046,2]
[423344532,1780065067000,-1852.42,0.00020216,2]
[423344524,1780065067000,-627.21927295,0.0002008,2]
[423344522,1780065067000,-627.21927295,0.00020044,2]
[423344526,1780065067000,-627.21927295,0.00020098,2]
[423344528,1780065067000,-627.21927295,0.00020117,2]
[423344531,1780065067000,-249.5,0.00020208,2]
[423344530,1780065067000,-1600.0,0.00020208,2]
[423344527,1780065067000,-1621.0,0.00020111,2]
[423344540,1780065067000,-899.662535,0.00020381,2]
[423344538,1780065067000,-899.662535,0.00020381,2]
[423344541,1780065067000,-923.097563,0.00020381,2]
[423344542,1780065067000,-899.662535,0.00020381,2]
[423344543,1780065067000,-923.097563,0.00020381,2]
[423344536,1780065067000,-7567.4,0.00020381,2]
[423344544,1780065067000,-923.097563,0.00020381,2]
[423344534,1780065067000,-627.21927295,0.00020255,2]
[423344535,1780065067000,-2236.95670847,0.00020374,2]
[423344533,1780065067000,-627.21927295,0.00020216,2]
[423344529,1780065067000,-1660.38500618,0.000202,2]
[423344582,1780065068000,-15000.0,0.00021,2]
[423344586,1780065068000,-818.0,0.00021,2]
[423344588,1780065068000,-912.0,0.00021,2]
[423344584,1780065068000,-15000.0,0.00021,2]
[423344581,1780065068000,-2696.0,0.00021,2]
[423344587,1780065068000,-266.6207616,0.00021,4]
[423344583,1780065068000,-6111.0,0.00021,2]
[423344574,1780065068000,-6111.0,0.00021,2]
[423344576,1780065068000,-879.0,0.00021,2]
[423344579,1780065068000,-584.0,0.00021,2]
[423344575,1780065068000,-12660.0334831,0.00021,2]
[423344580,1780065068000,-571.0,0.00021,2]
[423344577,1780065068000,-1658.0,0.00021,2]
[423344573,1780065068000,-15000.0,0.00021,2]
[423344590,1780065068000,-3226.0,0.00021,2]
[423344578,1780065068000,-1660.38500618,0.00021,2]
[423344585,1780065068000,-6111.0,0.00021,2]
[423344595,1780065068000,-1660.38500618,0.000214,2]
[423344589,1780065068000,-5486.0,0.00021,2]
[423344591,1780065068000,-878.0,0.00021,2]
[423344608,1780065068000,-152.0,0.00021542,2]
[423344604,1780065068000,-200.0,0.00021542,2]
[423344605,1780065068000,-209.40437684,0.00021542,2]
[423344607,1780065068000,-185.35812638,0.00021542,2]
[423344606,1780065068000,-152.0,0.00021542,2]
[423344601,1780065068000,-151.0,0.00021542,2]
[423344600,1780065068000,-58418.47841133,0.000215,2]
[423344603,1780065068000,-182.5563723,0.00021542,2]
[423344597,1780065068000,-427.36695461,0.00021499,2]
[423344602,1780065068000,-152.0,0.00021542,2]
[423344599,1780065068000,-2425.31,0.000215,7]
[423344596,1780065068000,-2405.55389863,0.0002147,2]
[423344593,1780065068000,-863.33,0.00021205,2]
[423344592,1780065068000,-1660.38500618,0.000212,2]
[423344594,1780065068000,-469.99,0.00021305,2]
[423344598,1780065068000,-209.89817868,0.00021499,2]
[423344630,1780065069000,-979.73,0.000219,2]
[423344639,1780065069000,-1658.0,0.00022,2]
[423344632,1780065069000,-174.72474418,0.00021918,2]
[423344633,1780065069000,-151.0,0.00021927,2]
[423344641,1780065069000,-571.0,0.00022,2]
[423344634,1780065069000,-151.0,0.00021982,2]
[423344642,1780065069000,-2696.0,0.00022,2]
[423344645,1780065069000,-5486.0,0.00022,2]
[423344638,1780065069000,-879.0,0.00022,2]
[423344636,1780065069000,-334.0,0.00022,2]
[423344640,1780065069000,-584.0,0.00022,2]
[423344637,1780065069000,-219.0,0.00022,2]
[423344643,1780065069000,-818.0,0.00022,2]
[423344653,1780065069000,-200.0,0.00022331,2]
[423344623,1780065069000,-7357.34,0.00021788,2]
[423344644,1780065069000,-912.0,0.00022,2]
[423344646,1780065069000,-878.0,0.00022,2]
[423344635,1780065069000,-352.0,0.00022,2]
[423344628,1780065069000,-1000.0,0.00021891,2]
[423344621,1780065069000,-151.0,0.00021707,2]
[423344627,1780065069000,-1000.0,0.00021891,2]
[423344647,1780065069000,-450.0,0.00022,2]
[423344609,1780065069000,-152.0,0.00021542,2]
[423344610,1780065069000,-152.0,0.00021542,2]
[423344612,1780065069000,-152.0,0.00021542,2]
[423344618,1780065069000,-151.0,0.00021652,2]
[423344611,1780065069000,-152.0,0.00021542,2]
[423344614,1780065069000,-152.0,0.00021542,2]
[423344617,1780065069000,-151.0,0.00021597,2]
[423344624,1780065069000,-151.0,0.00021817,2]
[423344613,1780065069000,-152.0,0.00021542,2]
[423344616,1780065069000,-152.0,0.00021542,2]
[423344619,1780065069000,-1660.38500618,0.000217,2]
[423344620,1780065069000,-1124.0,0.00021705,2]
[423344622,1780065069000,-151.0,0.00021762,2]
[423344631,1780065069000,-5000.0,0.00021918,2]
[423344625,1780065069000,-469.99,0.00021824,2]
[423344629,1780065069000,-1660.38500618,0.000219,2]
[423344626,1780065069000,-151.0,0.00021872,2]
[423344615,1780065069000,-152.0,0.00021542,2]
[423344650,1780065069000,-204.13610514,0.0002209,2]
[423344667,1780065069000,-1000.0,0.00023,20]
[423344649,1780065069000,-151.0,0.00022037,2]
[423344673,1780065069000,-571.0,0.00023,2]
[423344672,1780065069000,-2500.0,0.00023,20]
[423344675,1780065069000,-818.0,0.00023,2]
[423344679,1780065069000,-2682.57183977,0.00023114,2]
[423344686,1780065069000,-1756.15,0.00023875,2]
[423344687,1780065069000,-500.0,0.0002389,2]
[423344688,1780065069000,-200.0,0.00023917,2]
[423344678,1780065069000,-878.0,0.00023,2]
[423344685,1780065069000,-2781.82699784,0.00023662,2]
[423344681,1780065069000,-2000.0,0.00023431,2]
[423344682,1780065069000,-7357.34,0.00023575,2]
[423344683,1780065069000,-979.73,0.000236,7]
[423344684,1780065069000,-140942.0,0.000236,2]
[423344690,1780065069000,-334.0,0.00024,2]
[423344689,1780065069000,-352.0,0.00024,2]
[423344691,1780065069000,-219.0,0.00024,2]
[423344648,1780065069000,-2494.55939288,0.00022018,2]
[423344671,1780065069000,-584.0,0.00023,2]
[423344670,1780065069000,-1658.0,0.00023,2]
[423344680,1780065069000,-200.0,0.00023124,2]
[423344669,1780065069000,-2500.0,0.00023,20]
[423344651,1780065069000,-151.0,0.00022092,2]
[423344674,1780065069000,-2696.0,0.00023,2]
[423344652,1780065069000,-861.20501183,0.00022244,2]
[423344655,1780065069000,-933.75,0.00022466,2]
[423344658,1780065069000,-168.09,0.00022603,2]
[423344656,1780065069000,-1268.03,0.00022466,2]
[423344654,1780065069000,-7567.4,0.00022353,2]
[423344657,1780065069000,-2586.85809042,0.00022566,2]
[423344660,1780065069000,-1600.0,0.00022733,2]
[423344659,1780065069000,-1756.15,0.00022701,2]
[423344661,1780065069000,-1124.0,0.00022847,2]
[423344662,1780065069000,-200.0,0.00022923,2]
[423344663,1780065069000,-352.0,0.00023,2]
[423344677,1780065069000,-5486.0,0.00023,2]
[423344666,1780065069000,-2500.0,0.00023,20]
[423344676,1780065069000,-912.0,0.00023,2]
[423344668,1780065069000,-879.0,0.00023,2]
[423344664,1780065069000,-334.0,0.00023,2]
[423344665,1780065069000,-219.0,0.00023,2]
[423344735,1780065070000,-560.55,0.00024936,2]
[423344726,1780065070000,-200.0,0.00024711,2]
[423344736,1780065070000,-500.0,0.00024936,2]
[423344728,1780065070000,-266.812185,0.000248,2]
[423344730,1780065070000,-266.812185,0.000248,2]
[423344729,1780065070000,-266.812185,0.000248,2]
[423344733,1780065070000,-630.49,0.00024886,7]
[423344725,1780065070000,-630.49,0.00024658,2]
[423344724,1780065070000,-628.27,0.00024658,2]
[423344727,1780065070000,-2991.49051684,0.00024758,2]
[423344721,1780065070000,-150.0,0.00024658,2]
[423344732,1780065070000,-628.27,0.00024886,7]
[423344734,1780065070000,-1799.0,0.00024904,2]
[423344742,1780065070000,-542.96,0.00024936,2]
[423344738,1780065070000,-568.63269263,0.00024936,2]
[423344746,1780065070000,-353.0,0.00025,2]
[423344737,1780065070000,-500.0,0.00024936,2]
[423344747,1780065070000,-223.0,0.00025,2]
[423344740,1780065070000,-500.0,0.00024936,2]
[423344739,1780065070000,-500.0,0.00024936,2]
[423344743,1780065070000,-500.0,0.00024936,2]
[423344745,1780065070000,-370.0,0.00025,2]
[423344741,1780065070000,-500.0,0.00024936,2]
[423344744,1780065070000,-500.0,0.00024936,2]
[423344748,1780065070000,-887.0,0.00025,2]
[423344720,1780065070000,-1000.0,0.00024658,2]
[423344731,1780065070000,-266.812185,0.000248,2]
[423344722,1780065070000,-150.0,0.00024658,2]
[423344701,1780065070000,-27180.26776259,0.00024,2]
[423344717,1780065070000,-10785.48752526,0.0002429,7]
[423344699,1780065070000,-3600.0,0.00024,2]
[423344700,1780065070000,-5486.0,0.00024,2]
[423344698,1780065070000,-912.0,0.00024,2]
[423344692,1780065070000,-879.0,0.00024,2]
[423344693,1780065070000,-1658.0,0.00024,2]
[423344695,1780065070000,-571.0,0.00024,2]
[423344697,1780065070000,-818.0,0.00024,2]
[423344694,1780065070000,-584.0,0.00024,2]
[423344696,1780065070000,-2696.0,0.00024,2]
[423344704,1780065070000,-1272.0,0.00024044,2]
[423344703,1780065070000,-500.0,0.00024,2]
[423344705,1780065070000,-503.0,0.00024044,2]
[423344719,1780065070000,-5531.0,0.000244,3]
[423344702,1780065070000,-878.0,0.00024,2]
[423344706,1780065070000,-1245.947,0.00024044,2]
[423344709,1780065070000,-1124.0,0.0002405,2]
[423344707,1780065070000,-3774.363,0.00024044,2]
[423344710,1780065070000,-6120.17,0.00024174,2]
[423344711,1780065070000,-9243.94,0.00024174,2]
[423344723,1780065070000,-245.24118621,0.00024658,2]
[423344713,1780065070000,-1653.84,0.00024174,2]
[423344714,1780065070000,-7390.55,0.00024174,2]
[423344712,1780065070000,-760.91,0.00024174,2]
[423344715,1780065070000,-2884.75459676,0.0002421,2]
[423344716,1780065070000,-3759.74472052,0.0002421,2]
[423344718,1780065070000,-7567.4,0.00024324,2]
[423344708,1780065070000,-1356.0,0.00024044,2]
[423344753,1780065070000,-587.04311938,0.00025,2]
[423344751,1780065070000,-2630.29506883,0.00025,30]
[423344750,1780065070000,-590.36656156,0.00025,2]
[423344780,1780065070000,-392.02,0.00025,2]
[423344786,1780065070000,-996.0,0.00025082,2]
[423344785,1780065070000,-1756.15,0.00025049,2]
[423344796,1780065070000,-979.73,0.000253,7]
[423344789,1780065070000,-630.49,0.00025115,30]
[423344795,1780065070000,-1124.0,0.00025253,2]
[423344791,1780065070000,-5000.0,0.00025243,2]
[423344787,1780065070000,-5531.0,0.000251,5]
[423344788,1780065070000,-628.27,0.00025115,30]
[423344794,1780065070000,-5000.0,0.00025243,2]
[423344792,1780065070000,-5000.0,0.00025243,2]
[423344790,1780065070000,-5275.76938366,0.00025243,2]
[423344778,1780065070000,-392.02,0.00025,2]
[423344797,1780065070000,-628.27,0.00025343,2]
[423344800,1780065070000,-253.36519863,0.00025397,2]
[423344798,1780065070000,-630.49,0.00025343,2]
[423344801,1780065070000,-200.0,0.00025504,2]
[423344802,1780065070000,-1000.0,0.00025562,10]
[423344803,1780065070000,-300.0,0.00025562,10]
[423344805,1780065070000,-630.49,0.00025572,7]
[423344806,1780065070000,-996.0,0.00025637,2]
[423344807,1780065070000,-863.33,0.00025644,2]
[423344808,1780065070000,-493.905739,0.000257,2]
[423344804,1780065070000,-628.27,0.00025572,7]
[423344809,1780065070000,-493.905739,0.000257,2]
[423344754,1780065070000,-400.63324285,0.00025,60]
[423344799,1780065070000,-7357.34,0.00025363,7]
[423344779,1780065070000,-392.02,0.00025,2]
[423344793,1780065070000,-5000.0,0.00025243,2]
[423344782,1780065070000,-392.02,0.00025,2]
[423344781,1780065070000,-392.02,0.00025,2]
[423344756,1780065070000,-1647.47271075,0.00025,30]
[423344757,1780065070000,-826.43033441,0.00025,2]
[423344755,1780065070000,-2714.70686209,0.00025,2]
[423344758,1780065070000,-313.60822115,0.00025,2]
[423344759,1780065070000,-923.26087713,0.00025,2]
[423344749,1780065070000,-1669.50753147,0.00025,2]
[423344760,1780065070000,-5499.83711925,0.00025,2]
[423344762,1780065070000,-379112.02586341,0.00025,2]
[423344763,1780065070000,-895.40812642,0.00025,2]
[423344771,1780065070000,-160.0,0.00025,7]
[423344772,1780065070000,-151.0,0.00025,2]
[423344761,1780065070000,-56288.56973458,0.00025,7]
[423344764,1780065070000,-151.0,0.00025,2]
[423344752,1780065070000,-1138.10530309,0.00025,60]
[423344777,1780065070000,-392.02,0.00025,2]
[423344766,1780065070000,-162.408305,0.00025,2]
[423344776,1780065070000,-392.02,0.00025,2]
[423344775,1780065070000,-392.02,0.00025,2]
[423344774,1780065070000,-392.02,0.00025,2]
[423344783,1780065070000,-392.02,0.00025,2]
[423344784,1780065070000,-167.07141607,0.00025,7]
[423344767,1780065070000,-162.408305,0.00025,2]
[423344770,1780065070000,-162.408305,0.00025,2]
[423344765,1780065070000,-151.0,0.00025,2]
[423344769,1780065070000,-209.09056759,0.00025,7]
[423344768,1780065070000,-162.408305,0.00025,2]
[423344773,1780065070000,-151.0,0.00025,2]
[423344844,1780065071000,-500.0,0.000257,2]
[423344854,1780065071000,-500.0,0.000257,2]
[423344853,1780065071000,-500.0,0.000257,2]
[423344846,1780065071000,-500.0,0.000257,2]
[423344847,1780065071000,-500.0,0.000257,2]
[423344842,1780065071000,-500.0,0.000257,2]
[423344855,1780065071000,-500.0,0.000257,2]
[423344840,1780065071000,-500.0,0.000257,2]
[423344841,1780065071000,-500.0,0.000257,2]
[423344843,1780065071000,-500.0,0.000257,2]
[423344850,1780065071000,-500.0,0.000257,2]
[423344845,1780065071000,-500.0,0.000257,2]
[423344848,1780065071000,-500.0,0.000257,2]
[423344866,1780065071000,-500.0,0.000257,2]
[423344852,1780065071000,-500.0,0.000257,2]
[423344849,1780065071000,-500.0,0.000257,2]
[423344857,1780065071000,-500.0,0.000257,2]
[423344867,1780065071000,-500.0,0.000257,2]
[423344856,1780065071000,-500.0,0.000257,2]
[423344858,1780065071000,-500.0,0.000257,2]
[423344859,1780065071000,-500.0,0.000257,2]
[423344864,1780065071000,-500.0,0.000257,2]
[423344865,1780065071000,-500.0,0.000257,2]
[423344862,1780065071000,-500.0,0.000257,2]
[423344860,1780065071000,-500.0,0.000257,2]
[423344861,1780065071000,-500.0,0.000257,2]
[423344851,1780065071000,-500.0,0.000257,2]
[423344837,1780065071000,-500.0,0.000257,2]
[423344810,1780065071000,-493.905739,0.000257,2]
[423344839,1780065071000,-500.0,0.000257,2]
[423344820,1780065071000,-500.0,0.000257,2]
[423344811,1780065071000,-493.905739,0.000257,2]
[423344814,1780065071000,-372.127038,0.000257,2]
[423344813,1780065071000,-151.0,0.000257,2]
[423344815,1780065071000,-372.127038,0.000257,2]
[423344817,1780065071000,-500.0,0.000257,2]
[423344818,1780065071000,-500.0,0.000257,2]
[423344812,1780065071000,-372.127038,0.000257,2]
[423344819,1780065071000,-500.0,0.000257,2]
[423344816,1780065071000,-372.127038,0.000257,2]
[423344822,1780065071000,-500.0,0.000257,2]
[423344821,1780065071000,-500.0,0.000257,2]
[423344838,1780065071000,-500.0,0.000257,2]
[423344825,1780065071000,-500.0,0.000257,2]
[423344823,1780065071000,-500.0,0.000257,2]
[423344824,1780065071000,-500.0,0.000257,2]
[423344826,1780065071000,-500.0,0.000257,2]
[423344828,1780065071000,-500.0,0.000257,2]
[423344829,1780065071000,-500.0,0.000257,2]
[423344827,1780065071000,-500.0,0.000257,2]
[423344830,1780065071000,-500.0,0.000257,2]
[423344831,1780065071000,-500.0,0.000257,2]
[423344834,1780065071000,-500.0,0.000257,2]
[423344833,1780065071000,-500.0,0.000257,2]
[423344835,1780065071000,-500.0,0.000257,2]
[423344836,1780065071000,-500.0,0.000257,2]
[423344832,1780065071000,-500.0,0.000257,2]
[423344871,1780065071000,-500.0,0.000257,2]
[423344863,1780065071000,-500.0,0.000257,2]
[423344869,1780065071000,-500.0,0.000257,2]
[423344895,1780065071000,-500.0,0.000257,2]
[423344904,1780065071000,-287.87789,0.000257,2]
[423344903,1780065071000,-500.0,0.000257,2]
[423344906,1780065071000,-9243.94,0.00025786,2]
[423344905,1780065071000,-6120.17,0.00025786,2]
[423344907,1780065071000,-760.91,0.00025786,2]
[423344908,1780065071000,-1653.84,0.00025786,2]
[423344909,1780065071000,-7390.55,0.00025786,2]
[423344912,1780065071000,-630.49,0.000258,30]
[423344910,1780065071000,-209.09056759,0.000258,7]
[423344914,1780065071000,-833.40594009,0.00026,2]
[423344915,1780065071000,-500.0,0.00026,2]
[423344901,1780065071000,-500.0,0.000257,2]
[423344913,1780065071000,-1109.07173699,0.00025866,2]
[423344916,1780065071000,-550.0,0.00026,2]
[423344917,1780065071000,-660.76,0.00026029,2]
[423344919,1780065071000,-630.49,0.00026029,2]
[423344926,1780065071000,-200.0,0.00026297,2]
[423344925,1780065071000,-7567.4,0.00026296,2]
[423344922,1780065071000,-1756.15,0.00026223,2]
[423344921,1780065071000,-996.0,0.00026192,3]
[423344920,1780065071000,-180.0,0.00026092,2]
[423344923,1780065071000,-2000.0,0.00026234,2]
[423344924,1780065071000,-179.8866763,0.00026244,2]
[423344927,1780065071000,-1000.0,0.00026377,15]
[423344868,1780065071000,-500.0,0.000257,2]
[423344918,1780065071000,-628.27,0.00026029,2]
[423344902,1780065071000,-500.0,0.000257,2]
[423344911,1780065071000,-628.27,0.000258,30]
[423344900,1780065071000,-500.0,0.000257,2]
[423344875,1780065071000,-500.0,0.000257,2]
[423344897,1780065071000,-500.0,0.000257,2]
[423344873,1780065071000,-500.0,0.000257,2]
[423344870,1780065071000,-500.0,0.000257,2]
[423344874,1780065071000,-500.0,0.000257,2]
[423344877,1780065071000,-500.0,0.000257,2]
[423344876,1780065071000,-500.0,0.000257,2]
[423344880,1780065071000,-500.0,0.000257,2]
[423344879,1780065071000,-500.0,0.000257,2]
[423344872,1780065071000,-500.0,0.000257,2]
[423344882,1780065071000,-500.0,0.000257,2]
[423344893,1780065071000,-500.0,0.000257,2]
[423344881,1780065071000,-500.0,0.000257,2]
[423344892,1780065071000,-500.0,0.000257,2]
[423344878,1780065071000,-500.0,0.000257,2]
[423344899,1780065071000,-500.0,0.000257,2]
[423344896,1780065071000,-500.0,0.000257,2]
[423344884,1780065071000,-500.0,0.000257,2]
[423344898,1780065071000,-500.0,0.000257,2]
[423344894,1780065071000,-500.0,0.000257,2]
[423344888,1780065071000,-500.0,0.000257,2]
[423344885,1780065071000,-500.0,0.000257,2]
[423344890,1780065071000,-500.0,0.000257,2]
[423344886,1780065071000,-500.0,0.000257,2]
[423344887,1780065071000,-500.0,0.000257,2]
[423344889,1780065071000,-500.0,0.000257,2]
[423344883,1780065071000,-500.0,0.000257,2]
[423344891,1780065071000,-500.0,0.000257,2]
[423344970,1780065072000,-168.91013242,0.00027397,7]
[423344968,1780065072000,-1756.15,0.00027397,2]
[423344964,1780065072000,-429.67183004,0.000273,30]
[423344969,1780065072000,-1561.02,0.00027397,30]
[423344967,1780065072000,-6649.0,0.00027346,5]
[423344961,1780065072000,-1208.56,0.00027214,7]
[423344965,1780065072000,-996.0,0.00027301,4]
[423344958,1780065072000,-2021.09,0.000272,14]
[423344962,1780065072000,-901.03,0.00027214,7]
[423344959,1780065072000,-1171.52,0.00027214,7]
[423344974,1780065072000,-2270.93149805,0.00027397,2]
[423344963,1780065072000,-429.67183006,0.000273,30]
[423344966,1780065072000,-8046.0,0.00027346,5]
[423344982,1780065072000,-4431.499608,0.00027397,2]
[423344971,1780065072000,-202.6921589,0.00027397,7]
[423344972,1780065072000,-179.17436182,0.00027397,30]
[423344976,1780065072000,-315.49308412,0.00027397,7]
[423344986,1780065072000,-4431.499608,0.00027397,2]
[423344977,1780065072000,-300.0,0.00027397,2]
[423344975,1780065072000,-1500.0,0.00027397,2]
[423344978,1780065072000,-151.0,0.00027397,2]
[423344979,1780065072000,-248.908852,0.00027397,2]
[423344984,1780065072000,-4431.499608,0.00027397,2]
[423344983,1780065072000,-4431.499608,0.00027397,2]